Cogmind - Beta 16 @@@ ROGUE MODE // 2025.12.04 @ 15:16:01 Player: Anonymous Bosch Result: Escaped! Performance ------------- Evolutions (9) 4500 Regions Visited (17) 3400 Robots Destroyed (133) 665 Value Destroyed (3288) 3288 Prototype IDs (57) 1140 Alien Tech Used (0) 0 Bonus (6865) 6865 TOTAL SCORE: 19858 Bonus ------- Follower Combat Kills 546 Aligned with FarCom 300 Met Warlord at Base 500 MAIN.C Attacked Warlord 500 Warlord Defense Kills 374 Met Warlord at Research 2000 Win 3000 Friendly Fire -355 Cogmind --------- Core Integrity 1600/1600 Matter 300/300 Energy 258/270 System Corruption 0% Temperature Cool (-172) Movement Flying (22) Location To Epsilon Eridani Parts ------- > --- POWER (3) -------- Light Antimatter Reactor Micro Antimatter Reactor Micro Antimatter Reactor > --- PROPULSION (7) --- Impulse Thruster Impulse Thruster Impulse Thruster Impulse Thruster Impulse Thruster Impulse Thruster Q-thruster > --- UTILITY (13) ----- Advanced Cryofiber Web Advanced Cooling System Machine Analyzer Experimental Optical Array Advanced Signal Interpreter Advanced Transmission Jammer Advanced ECM Suite Centrium Light Armor Plating Graphene Brace Hacking Suite Improved Hacking Suite Improved Hacking Suite Advanced Hacking Suite > --- WEAPON (2) ------- Enhanced Nova Cannon Lance > --- INVENTORY (5) ---- Improved VTOL Module Impulse Thruster Mini Grenade Launcher Peak State ------------ > --- POWER ------------ Light Antimatter Reactor Micro Antimatter Reactor Micro Antimatter Reactor > --- PROPULSION ------- Impulse Thruster Impulse Thruster Impulse Thruster Impulse Thruster Impulse Thruster Impulse Thruster Q-thruster > --- UTILITY ---------- Advanced Cryofiber Web Advanced Cooling System Machine Analyzer Experimental Optical Array Advanced Signal Interpreter Advanced Transmission Jammer Advanced ECM Suite Centrium Light Armor Plating Graphene Brace Hacking Suite Improved Hacking Suite Improved Hacking Suite Advanced Hacking Suite > --- WEAPON ----------- Enhanced Nova Cannon Lance > --- INVENTORY -------- Improved VTOL Module Impulse Thruster Mini Grenade Launcher [Rating: 164] Favorites ----------- Power Light Nuclear Core Engine Improved Ion Engine Power Core Light Nuclear Core Reactor Fusion Reactor Propulsion Armored Wheel Treads Light Treads Wheel Armored Wheel Flight Unit Improved VTOL Module Utility Huge Storage Unit Device Improved Heat Sink Storage Huge Storage Unit Processor Advanced Targeting Computer Hackware Hacking Suite Protection Hardened Light Armor Plating Weapon Mini Grenade Launcher Energy Gun Precision Beam Rifle Energy Cannon Phase Cannon Ballistic Gun Heavy Battle Rifle Ballistic Cannon Hardcell Cannon Launcher Mini Grenade Launcher Special Weapon Welding Torch Impact Weapon Maul Slashing Weapon Axe Piercing Weapon Lance Special Melee Weapon Datajack Build | -11 -10 -10 -10 -9 -8 -8 -8 -8 -6 -5 -5 -5 -4 -4 -3 -2 -1 ------- Run | Yrd Mat Min Exi Min Mat Sto Rec Scr Fac Fac Upp War Pro Fac Res Res Acc Slots Evolved 18 | . . . . . 4 . . . 4 2 . . . 2 2 2 2 Power 2 | . . . . . . . . . . . . . . 1 . . 1 Propulsion 5 | . . . . . . . . . 3 1 . . . 1 . . . Utility 11 | . . . . . 4 . . . 1 1 . . . . 2 2 1 Weapon . | . . . . . . . . . . . . . . . . . . Parts Attached 152 | 7 19 8 2 3 15 19 6 10 17 13 1 3 . 5 10 12 2 Power 17 | 1 2 1 . . 2 4 . . 1 2 . . . 1 2 . 1 Engine 6 | 1 1 1 . . 1 2 . . . . . . . . . . . Core 6 | . 1 . . . 1 2 . . 1 1 . . . . . . . Reactor 5 | . . . . . . . . . . 1 . . . 1 2 . 1 Propulsion 33 | 1 4 1 1 1 2 2 . 2 6 3 . . . 1 3 5 1 Treads 7 | 1 3 . . 1 1 1 . . . . . . . . . . . Leg . | . . . . . . . . . . . . . . . . . . Wheel 4 | . 1 1 1 . 1 . . . . . . . . . . . . Hover . | . . . . . . . . . . . . . . . . . . Flight 22 | . . . . . . 1 . 2 6 3 . . . 1 3 5 1 Utility 49 | 2 6 1 . 1 8 2 4 4 7 4 . . . 2 2 6 . Device 21 | 1 4 1 . . . 1 2 2 3 2 . . . 2 1 2 . Storage 3 | 1 2 . . . . . . . . . . . . . . . . Processor 9 | . . . . . 1 1 1 1 2 1 . . . . . 2 . Hackware 6 | . . . . . 1 . . . 2 . . . . . 1 2 . Protection 10 | . . . . 1 6 . 1 1 . 1 . . . . . . . Artifact . | . . . . . . . . . . . . . . . . . . Weapon 53 | 3 7 5 1 1 3 11 2 4 3 4 1 3 . 1 3 1 . Energy Gun 16 | 2 3 3 . . . 5 1 . 1 . 1 . . . . . . Energy Cannon 9 | . . . . . . 1 . . 2 3 . . . . 2 1 . Ballistic Gun 11 | 1 . . 1 1 1 4 . 3 . . . . . . . . . Ballistic Cannon 2 | . . . . . 1 . . . . . . 1 . . . . . Launcher 5 | . 2 2 . . . . . . . . . . . . 1 . . Special Weapon 1 | . . . . . . . 1 . . . . . . . . . . Impact Weapon 3 | . 1 . . . . . . . . . . 2 . . . . . Slashing Weapon 2 | . . . . . 1 . . 1 . . . . . . . . . Piercing Weapon 2 | . . . . . . . . . . 1 . . . 1 . . . Special Melee Weapon 2 | . 1 . . . . 1 . . . . . . . . . . . Unidentified Prototypes 19 | . . . . . . 5 2 . 2 6 . . . . 2 2 . Corrupted Parts 1 | . . . 1 . . . . . . . . . . . . . . System Corruption 1 | . . . 1 . . . . . . . . . . . . . . Parts Lost 14 | . 3 . . 1 2 3 . . . 1 . . . . 3 1 . Power . | . . . . . . . . . . . . . . . . . . Propulsion 4 | . . . . 1 . . . . . . . . . . 2 1 . Utility 6 | . 1 . . . 2 2 . . . . . . . . 1 . . Weapon 4 | . 2 . . . . 1 . . . 1 . . . . . . . Highest Loss Streak 3 | . 2 . . 1 1 3 . . . 1 . . . . 2 1 . To Critical Strikes . | . . . . . . . . . . . . . . . . . . Average Backups 15 | 6 14 24 23 19 19 19 20 19 5 4 5 5 5 4 4 4 3 Power 1 | . 1 2 1 2 2 1 1 1 1 1 1 1 1 1 2 1 . Propulsion 3 | 4 3 4 4 3 4 5 5 4 1 1 1 1 1 . . 1 2 Utility 4 | . 4 7 8 8 5 4 5 4 1 1 2 2 2 2 . . . Weapon 5 | . 5 9 8 5 6 7 6 7 1 1 1 1 1 1 1 1 1 Tool/Special . | . . . . . . . . . . . . . . . . . . Unused Backups 44 | . 4 2 3 . 7 8 3 2 4 5 . 1 . 3 . 1 1 Power 12 | . 1 1 1 . 2 2 . . 2 1 . 1 . . . 1 . Propulsion 12 | . 2 . . . 3 3 3 . . . . . . . . . 1 Utility 11 | . 1 . . . 1 1 . 2 . 3 . . . 3 . . . Weapon 8 | . . 1 2 . 1 2 . . 2 . . . . . . . . Tool/Special 1 | . . . . . . . . . . 1 . . . . . . . Average Slot Usage (%) 98 | . 100 100 90 99 99 99 99 97 99 97 91 94 94 92 94 96 99 Engine 4 | . 6 13 14 14 4 6 . . . . . . . . . . . Core 3 | . 7 . . . 4 2 9 9 6 3 . . . . . . . Reactor 1 | . . . . . . . . . . 1 5 5 5 8 9 8 12 Treads 8 | . 19 14 14 13 9 9 9 6 . . . . . . . . . Wheel 7 | . 8 14 14 14 9 9 9 8 . . . . . . . . . Flight 8 | . . . . . . . . 2 32 32 29 29 29 31 28 29 28 Device 9 | . 14 14 14 2 . 8 9 9 9 10 11 11 11 13 18 18 19 Storage 7 | . 14 14 14 14 9 9 9 9 . . . . . . . . . Processor 6 | . . . . . 3 7 9 15 9 11 11 11 11 10 9 13 12 Hackware 7 | . . . . . 8 9 9 9 12 11 11 11 11 10 13 12 16 Protection 12 | . . . . 11 32 19 17 11 13 10 11 11 11 6 3 4 4 Energy Gun 6 | . 22 18 2 . . 7 5 6 . . 2 . . . . . . Ballistic Gun 4 | . 1 . . 25 15 3 8 3 . . . . . . . . . Launcher 1 | . 1 5 . . . . . 3 5 . 5 3 4 4 2 . . Impact Weapon 1 | . . 4 12 . 1 . . . . . . 4 5 . . . . Slashing Weapon 2 | . . . . . 1 6 4 2 6 2 . . . . . . . Peak Build Rating 164 | 6 14 15 18 21 35 42 53 47 73 101 92 94 94 113 132 157 164 Average Rating 46 | 4 10 13 13 20 32 39 41 43 62 87 88 89 89 106 124 146 163 On Entrance 57 | . 6 14 15 18 21 33 41 47 45 73 85 92 89 89 109 108 148 Avg Prop Armor Cover (%) 10 | . 13 13 16 9 5 9 9 10 2 8 . . . . . 1 . Naked Turns . | . . . . . . . . . . . . . . . . . . Heaviest Build 115 | 15 92 94 94 97 115 111 102 101 101 33 29 34 26 37 43 48 55 Greatest Support 57 | 20 40 16 10 10 20 12 12 12 31 38 34 34 38 45 50 54 57 Greatest Overweight (x) 10 | . 5 9 9 9 10 9 8 8 8 2 . . . . . . . Average Overweight (x) 2 | . 2 7 9 9 8 8 7 7 . . . . . . . . . Largest Inventory Capacity 25 | 8 25 25 25 25 25 25 25 25 25 5 5 5 5 5 5 5 5 Average Capacity 18 | 7 17 25 25 25 25 25 25 25 5 5 5 5 5 5 5 5 5 Most Carried 25 | 8 25 25 25 25 25 25 25 25 16 5 5 5 5 5 5 5 4 Average Carried 18 | 6 14 24 24 24 24 24 24 21 5 4 5 4 5 4 4 4 3 Final Capacity 25 | 8 25 25 25 25 25 25 25 25 5 5 5 5 5 5 5 5 5 Final Carried 25 | 8 24 25 25 25 25 25 25 16 5 5 5 5 5 5 5 5 3 Class Distribution -------------------- 43% | Mutant 17% | Hacker-Ninja 15% | Commander-Mutant 8% | Trapper-Mutant 7% | Scavenger-Mutant 4% | Hacker-Sprinter Dominant Class ---------------- Mutant | -10/Materials Trapper-Mutant | -10/Mines Trapper-Mutant | -10/Exiles Mutant | -9/Mines Mutant | -8/Materials Mutant | -8/Storage Commander-Mutant | -8/Recycling Commander-Mutant | -8/Scraptown Commander-Sprinter | -6/Factory Hacker-Ninja | -5/Factory Hacker-Sprinter | -5/Upper Caves Hacker-Sprinter | -5/Warlord Hacker-Sprinter | -4/Proximity Caves Hacker-Ninja | -4/Factory Hacker-Ninja | -3/Research Hacker-Ninja | -2/Research Hacker-Ninja | -1/Access Resources | -11 -10 -10 -10 -9 -8 -8 -8 -8 -6 -5 -5 -5 -4 -4 -3 -2 -1 ----------- Run | Yrd Mat Min Exi Min Mat Sto Rec Scr Fac Fac Upp War Pro Fac Res Res Acc Matter Collected 4583 | 327 274 296 . 199 595 920 350 35 350 217 . 242 197 87 259 205 30 Remotely . | . . . . . . . . . . . . . . . . . . Salvage Created 5680 | 248 704 383 . 141 719 1063 290 . 283 469 . 168 35 153 480 505 39 Parts 280 | 21 35 30 . 7 32 58 10 . 11 26 . 4 6 4 15 18 3 Haulers Intercepted 18 | . 2 . . . 3 6 . . . 3 . . . . . 4 . Recyclers Shooed 6 | . 4 . . . . 1 . . 1 . . . . . . . . Parts Field Recycled . | . . . . . . . . . . . . . . . . . . Retrieved Matter . | . . . . . . . . . . . . . . . . . . Parts Self-Destructed 3 | . . . . . . . . . . . . . 3 . . . . Prevented . | . . . . . . . . . . . . . . . . . . Parts Restored . | . . . . . . . . . . . . . . . . . . Kills | -11 -10 -10 -10 -9 -8 -8 -8 -8 -6 -5 -5 -5 -4 -4 -3 -2 -1 ------- Run | Yrd Mat Min Exi Min Mat Sto Rec Scr Fac Fac Upp War Pro Fac Res Res Acc Combat Hostiles Destroyed 58 | . 10 10 . 3 9 12 1 . . 2 . 3 5 . 1 2 . Melee 6 | . . 1 . . . 2 . . . 2 . . . . 1 . . Guns 38 | . 10 6 . 3 8 10 1 . . . . . . . . . . Cannons 6 | . . . . . 1 . . . . . . 3 . . . 2 . AOE 8 | . . 3 . . . . . . . . . . 5 . . . . Classes Destroyed 15 | 2 6 2 . . 1 1 . . . 2 . . 1 . . . . Worker 9 | . 1 3 . . . 1 . . 4 . . . . . . . . Builder 3 | . . . . . . . . . . 3 . . . . . . . Tunneler 12 | 9 1 1 . . . . . . 1 . . . . . . . . Hauler 18 | . 2 . . . 3 6 . . . 3 . . . . . 4 . Recycler 14 | 1 2 1 . . 2 2 3 . 1 . . . . . 2 . . Operator 6 | . 2 . . . . 2 . . 1 1 . . . . . . . Drone 2 | . . . . . . . . . . . . . 2 . . . . Watcher 14 | . 3 . . . 1 1 . . 1 . . . . 4 2 1 1 Swarmer 14 | . 3 4 . . 1 1 . . . . . . 3 . . 2 . Grunt 23 | . 7 3 . 3 3 5 . . . . . 2 . . . . . Brawler 1 | . . . . . 1 . . . . . . . . . . . . Sentry 13 | . . 2 . . 4 5 1 . . . . . . . 1 . . Hunter 1 | . . . . . . 1 . . . . . . . . . . . Programmer 3 | . . . . . . . . . . 2 . 1 . . . . . Assembled 1 | . . 1 . . . . . . . . . . . . . . . Best Kill Streak 5 | 2 5 3 . 2 4 2 2 . 2 3 . 3 2 1 2 2 1 Combat Bots Only 4 | . 4 3 . 2 3 2 1 . . 2 . 3 2 . 1 2 . Max Kills in Single Turn 2 | 1 1 2 . 1 1 2 2 . 1 1 . 1 1 1 1 1 1 Gunslinging . | . . . . . . . . . . . . . . . . . . Exploded 2 | . . 2 . . . . . . . . . . 1 . . . . Melee 1 | . . 1 . . . 1 . . . 1 . . . . 1 . . Uniques/NPCs Destroyed 1 | . . . . . . . 1 . . . . . . . . . . 01-MTF (-8/Recycling) Combat | -11 -10 -10 -10 -9 -8 -8 -8 -8 -6 -5 -5 -5 -4 -4 -3 -2 -1 -------- Run | Yrd Mat Min Exi Min Mat Sto Rec Scr Fac Fac Upp War Pro Fac Res Res Acc Hostile Shots Fired 393 | . 97 43 . 16 42 78 8 . . 23 . . 37 10 38 1 . Missed 135 | . 32 12 . 3 12 25 1 . . 7 . . 20 5 18 . . Hits 258 | . 65 31 . 13 30 53 7 . . 16 . . 17 5 20 1 . Melee 7 | . . . . . 1 . . . . . . . . . 6 . . Projectile 251 | . 65 31 . 13 29 53 7 . . 16 . . 17 5 14 1 . AOE 8 | . . . . . . . 1 . . 1 . 1 . 2 3 . . Critical Strikes 13 | . 1 . . . 3 5 . . . . . . 2 . 2 . . Actively Blocked 2 | . . . . . . . . . . . . . . . 2 . . Part Disruptions 1 | . . . . . . . . . . . . . . . 1 . . Damage Taken 4686 | . 711 401 . 185 465 971 151 . 80 622 . 6 363 158 551 22 . Core 636 | . 92 79 . 15 59 111 24 . 40 74 . 3 77 20 42 . . Absorbed by Shields 42 | . . . . . . . 36 . . . . 6 . . . . . Redirected to Shielding 152 | . . . . . . . . . . 101 . . 51 . . . . Regen/Repaired (Parts) 1946 | . 346 . . . 232 411 . 316 . 250 . . . . 391 . . Core Remaining (%) 84 | 100 . . . 25 . . . 64 95 . . . 84 98 96 100 100 Volleys Fired 335 | 19 75 20 . 8 40 59 8 . 1 28 . 22 16 8 10 21 . Largest 2 | 2 2 2 . 2 2 2 2 . 1 1 . 1 1 1 1 1 . Hottest 121 | 70 105 121 . 56 60 91 86 . 30 85 . 55 55 55 90 120 . Shots Fired 552 | 38 143 41 1 17 84 108 14 . 1 28 . 22 16 8 10 21 . Gun 432 | 38 141 39 1 17 82 100 14 . . . . . . . . . . Cannon 90 | . . . . . 2 2 . . . 24 . 22 1 8 10 21 . Launcher 30 | . 2 2 . . . 6 . . 1 4 . . 15 . . . . Special . | . . . . . . . . . . . . . . . . . . Kinetic 269 | 19 35 . 1 17 84 74 8 . . . . 22 1 8 . . . Thermal 198 | 19 73 28 . . . 20 6 . . 21 . . . . 10 21 . Explosive 30 | . 2 2 . . . 6 . . 1 4 . . 15 . . . . Electromagnetic 55 | . 33 11 . . . 8 . . . 3 . . . . . . . Robot Hit Streak 22 | 7 14 18 . 3 9 10 22 . . 3 . 4 2 . . 4 . Robot Miss Streak 6 | 2 5 2 . 1 5 4 1 . . 2 . 3 4 . . 6 . Penetration Max . | . . . . . . . . . . . . . . . . . . Secondary Targets . | . . . . . . . . . . . . . . . . . . Shots Hit Robots 440 | 23 95 32 . 11 61 86 33 . 19 27 . 13 2 8 12 17 1 Core Hits 197 | 11 33 20 . 4 29 39 8 . 7 11 . 6 11 4 6 7 1 Critical Kills . | . . . . . . . . . . . . . . . . . . Critical Parts Destroyed 3 | . . . . . 2 1 . . . . . . . . . . . Critical Strikes 20 | 2 4 3 . . 2 1 . . . 2 . 3 . 1 2 . . Burn 9 | 2 4 3 . . . . . . . . . . . . . . . Destroy 3 | . . . . . 2 1 . . . . . . . . . . . Blast 3 | . . . . . . . . . . . . 3 . . . . . Sever 2 | . . . . . . . . . . 2 . . . . . . . Impale 3 | . . . . . . . . . . . . . . 1 2 . . Melee Attacks 433 | . 21 13 . . 6 48 23 . 53 91 . . 37 64 46 30 1 Impact 75 | . 20 13 . . 4 . . . . . . . 37 1 . . . Slashing 141 | . . . . . 2 47 5 . 53 34 . . . . . . . Piercing 197 | . . . . . . . . . . 57 . . . 63 46 30 1 Sneak Attacks 48 | . 1 1 . . . 8 20 . 8 4 . . . . 3 3 . Combat Hostiles . | . . . . . . . . . . . . . . . . . . Follow-up Attacks . | . . . . . . . . . . . . . . . . . . Damage Inflicted 11944 | 292 1373 691 . 195 1086 2004 495 . 1291 1400 . 498 468 484 603 1018 46 Guns 4882 | 292 1263 408 . 195 1042 1329 353 . . . . . . . . . . Cannons 804 | . . . . . 44 . . . . . . 498 . . . 262 . Explosions 1124 | . 109 173 . . . 104 . . 51 219 . . 468 . . . . Melee 5130 | . . 110 . . . 571 139 . 1240 1181 . . . 484 603 756 46 Ramming 4 | . 1 . . . . . 3 . . . . . . . . . . Kinetic 3490 | 117 290 . . 195 1086 1067 237 . . . . 498 . . . . . Thermal 1852 | 175 737 400 . . . 162 116 . . . . . . . . 262 . Explosive 941 | . 39 60 . . . 104 . . 51 219 . . 468 . . . . Electromagnetic 527 | . 306 121 . . . 100 . . . . . . . . . . . Impact 110 | . . 110 . . . . . . . . . . . . . . . Slashing 2794 | . . . . . . 571 139 . 1240 844 . . . . . . . Piercing 2226 | . . . . . . . . . . 337 . . . 484 603 756 46 Highest Corruption 7 | . 2 2 3 3 3 6 6 . . 1 1 1 . 2 7 . . Average Corruption 3 | . 2 2 2 3 3 4 5 . . 1 1 1 . 1 2 . . Corruption Purged 5 | . . . . . . . 5 . . . . . . . . . . Corruption Blocked . | . . . . . . . . . . . . . . . . . . Effects 290 | . 3 24 7 20 31 130 71 . . 1 . . . . 3 . . Message Errors 76 | . . 4 2 5 5 37 22 . . . . . . . 1 . . Matter Fused 75 | . 1 5 2 6 9 34 17 . . . . . . . 1 . . Heat Flow Errors 29 | . 2 2 1 3 2 9 9 . . 1 . . . . . . . Energy Discharges 34 | . . 4 1 2 3 16 8 . . . . . . . . . . Parts Fused 5 | . . . . . . 4 1 . . . . . . . . . . Data Loss (minor) 35 | . . 2 . 2 5 15 10 . . . . . . . 1 . . Data Loss (major) 16 | . . 2 1 1 3 6 3 . . . . . . . . . . Misfires 15 | . . 3 . 1 4 7 . . . . . . . . . . . Alerts 5 | . . 2 . . . 2 1 . . . . . . . . . . Overload Shots . | . . . . . . . . . . . . . . . . . . Overflow Damage 936 | . . 35 . . . 151 15 . 354 230 . . 18 76 45 12 . Projectiles 12 | . . . . . . . . . . . . . . . . 12 . Explosions 18 | . . . . . . . . . . . . . 18 . . . . Melee 906 | . . 35 . . . 151 15 . 354 230 . . . 76 45 . . Knockbacks 2 | . . 1 . . . . . . . . . 1 . . . . . Impact 1 | . . 1 . . . . . . . . . . . . . . . Kinetic 1 | . . . . . . . . . . . . 1 . . . . . Secondary . | . . . . . . . . . . . . . . . . . . Self-Inflicted Damage 155 | . . 63 . . . 8 1 . . . . . 83 . . . . Shots 7 | . . 2 . . . 1 . . . . . . 4 . . . . Rammed 3 | . 1 . . . . 1 1 . . . . . . . . . . Targets Rammed 4 | . 2 . . . . 1 1 . . . . . . . . . . Kicked . | . . . . . . . . . . . . . . . . . . Crushed 1 | . 1 . . . . . . . . . . . . . . . . Highest Temperature 397 | 36 397 223 256 201 217 378 265 . 12 224 . 7 49 6 2 301 . Average Temperature 65 | 13 69 93 132 64 47 105 117 . 5 53 . 7 22 6 2 82 . Received Heat Transfer 1124 | . 183 122 . 111 189 360 47 . . . . . 100 12 . . . Effects 6 | . 2 . . . . 4 . . . . . . . . . . . Shutdowns 1 | . 1 . . . . . . . . . . . . . . . . Energy Bleed 2 | . . . . . . 2 . . . . . . . . . . . Interference 2 | . . . . . . 2 . . . . . . . . . . . Damage (minor) 1 | . 1 . . . . . . . . . . . . . . . . Siege Activations . | . . . . . . . . . . . . . . . . . . Martial Activations . | . . . . . . . . . . . . . . . . . . Shielding Activations . | . . . . . . . . . . . . . . . . . . Robots Disrupted . | . . . . . . . . . . . . . . . . . . Combat Hostiles . | . . . . . . . . . . . . . . . . . . Robots Corrupted 1 | . . 1 . . . . . . . . . . . . . . . Combat Hostiles . | . . . . . . . . . . . . . . . . . . Parts Fried 5 | . . 2 . . . 2 . . . 1 . . . . . . . Impact Corruptions 1 | . . 1 . . . . . . . . . . . . . . . Robots Melted . | . . . . . . . . . . . . . . . . . . Combat Hostiles . | . . . . . . . . . . . . . . . . . . Parts Melted 5 | 1 2 2 . . . . . . . . . . . . . . . Heat Transferred 4838 | 666 2246 1075 . . . 407 222 . . . . . . . . 222 . Parts Sabotaged . | . . . . . . . . . . . . . . . . . . Parts Stolen . | . . . . . . . . . . . . . . . . . . Parts Stripped . | . . . . . . . . . . . . . . . . . . Power Chain Reactions 2 | . 1 1 . . . . . . . . . . . . . . . Alert | -11 -10 -10 -10 -9 -8 -8 -8 -8 -6 -5 -5 -5 -4 -4 -3 -2 -1 ------- Run | Yrd Mat Min Exi Min Mat Sto Rec Scr Fac Fac Upp War Pro Fac Res Res Acc Maximum Alert Level . | . . . . . . . . . . . . . . . . . . Low Security (%) 100 | 100 100 100 . 100 100 100 100 . 100 100 . . . 100 100 100 100 Level 1 . | . . . . . . . . . . . . . . . . . . Level 2 . | . . . . . . . . . . . . . . . . . . Level 3 . | . . . . . . . . . . . . . . . . . . Level 4 . | . . . . . . . . . . . . . . . . . . Level 5 . | . . . . . . . . . . . . . . . . . . High Security . | . . . . . . . . . . . . . . . . . . Max Security . | . . . . . . . . . . . . . . . . . . Peak Influence 198 | 10 198 63 . 51 109 172 66 . 56 167 . . . 161 66 182 103 Initial 150 | . . . . . . 9 66 . . 12 . . . 150 . 31 103 Average 30 | 1 32 14 . 4 29 46 11 . 7 44 . . . 49 6 88 87 Influence Increases 4668 | 50 472 253 . 102 666 555 256 . 227 556 . 293 220 346 264 389 19 Destroy 0b10 Robot/C 1500 | . 200 180 . 60 420 240 60 . 20 40 . 160 60 . 20 40 . Destroy 0b10 Robot/NC 385 | 50 55 25 . . 35 60 15 . 30 35 . . 10 20 20 25 5 Destroy Leader 334 | . 60 20 . 10 100 84 . . 12 14 . . . 8 14 10 2 Allied During Kill 112 | . . . . . 47 . 7 . . . . 58 . . . . . Successful Hack 403 | . 30 . . . 22 34 22 . 73 99 . . . 34 57 20 12 Select Force Hacks 150 | . . . . . . . 150 . . . . . . . . . . Disable Machine 135 | . . . . . 15 45 . . 45 15 . . . . . 15 . Anti-Garrison Action 150 | . . . . . . . . . . . . . . . . 150 . Destroy Structure 629 | . 22 28 . 2 12 77 2 . 32 188 . . . 104 78 84 . Advance Influence 150 | . . . . . . . . . . . . . . 150 . . . Partial Spotted 135 | . . . . . . . . . 15 60 . . . 15 45 . . Lose Combat Pursuer 585 | . 105 . . 30 15 15 . . . 105 . 75 150 15 30 45 . Influence Decreases 4586 | 50 472 253 . 102 643 406 428 . 201 446 71 157 421 346 208 273 109 Entered New Map 545 | . . . . . . 14 106 . . 14 51 65 201 . . 25 69 Time Decay 3769 | 50 452 253 . 92 546 369 322 . 201 382 20 72 220 334 178 238 40 Lost Part 100 | . 20 . . 10 17 13 . . . 10 . . . . 20 10 . Lost Ally 172 | . . . . . 80 10 . . . 40 . 20 . 12 10 . . Squads Dispatched 34 | . 1 . . . 1 2 . . 4 15 . . . 4 4 3 . Investigation 10 | . . . . . 1 . . . 1 6 . . . 1 . 1 . Extermination 13 | . . . . . . . . . 3 4 . . . 3 3 . . Reinforcement 9 | . 1 . . . . 2 . . . 3 . . . . 1 2 . Assault 2 | . . . . . . . . . . 2 . . . . . . . Garrison . | . . . . . . . . . . . . . . . . . . Intercept . | . . . . . . . . . . . . . . . . . . Searches Triggered . | . . . . . . . . . . . . . . . . . . Construction Impeded . | . . . . . . . . . . . . . . . . . . Haulers Reinforced 2 | . . . . . . . . . . . . . . . . 2 . Active Scanning Responses . | . . . . . . . . . . . . . . . . . . Cargo Convoy Interrupts 1 | . . . . . . . . . . 1 . . . . . . . Stealth | -11 -10 -10 -10 -9 -8 -8 -8 -8 -6 -5 -5 -5 -4 -4 -3 -2 -1 --------- Run | Yrd Mat Min Exi Min Mat Sto Rec Scr Fac Fac Upp War Pro Fac Res Res Acc Distress Signals 12 | . . 1 . . 1 2 . . . 2 . . 1 1 . 4 . Communications Jammed 6 | . . . . . . . . . . . . . . 2 1 3 . Distress Signals 6 | . . . . . . . . . . . . . . 2 1 3 . Times Spotted 239 | . 27 11 . 5 21 34 7 . 2 21 . 38 24 17 18 12 2 Peak Tracking Total 12 | . 6 3 . 3 4 4 2 . 1 4 . 12 7 5 8 5 1 Tactical Retreats 25 | . 3 . . 2 1 1 . . . 3 . 3 6 1 3 2 . ECM-based Alert Blocks 17 | . . . . . . . . . . 4 . . 7 . 6 . . Traps | -11 -10 -10 -10 -9 -8 -8 -8 -8 -6 -5 -5 -5 -4 -4 -3 -2 -1 ------- Run | Yrd Mat Min Exi Min Mat Sto Rec Scr Fac Fac Upp War Pro Fac Res Res Acc Traps Triggered 9 | . 3 . . . . 3 . . 1 1 . . . 1 . . . Indirectly . | . . . . . . . . . . . . . . . . . . Trap Hack Attempts 64 | . 64 . . . . . . . . . . . . . . . . Triggered 1 | . 1 . . . . . . . . . . . . . . . . Disarmed 1 | . 1 . . . . . . . . . . . . . . . . Reprogrammed 9 | . 9 . . . . . . . . . . . . . . . . Reused . | . . . . . . . . . . . . . . . . . . Traps Extracted 12 | . 8 . . 4 . . . . . . . . . . . . . Installed . | . . . . . . . . . . . . . . . . . . Triggered . | . . . . . . . . . . . . . . . . . . Most Traps Carried 8 | . 8 8 8 4 4 4 . . . . . . . . . . . Machines | -11 -10 -10 -10 -9 -8 -8 -8 -8 -6 -5 -5 -5 -4 -4 -3 -2 -1 ---------- Run | Yrd Mat Min Exi Min Mat Sto Rec Scr Fac Fac Upp War Pro Fac Res Res Acc Machines Disabled 11 | . . . . . 1 3 . . 3 1 . . 1 . . 2 . Max in Single Turn 3 | . . . . . 1 1 . . 3 1 . . 1 . . 1 . Garrison Access 10 | . . . . . . 1 . . 1 3 . . . 2 2 1 . Machines Repaired . | . . . . . . . . . . . . . . . . . . Machines Dismantled . | . . . . . . . . . . . . . . . . . . Machines Sabotaged . | . . . . . . . . . . . . . . . . . . Overloaded Fab Kills . | . . . . . . . . . . . . . . . . . . Hacking | -11 -10 -10 -10 -9 -8 -8 -8 -8 -6 -5 -5 -5 -4 -4 -3 -2 -1 --------- Run | Yrd Mat Min Exi Min Mat Sto Rec Scr Fac Fac Upp War Pro Fac Res Res Acc Machines Accessed 121 | . 11 . 4 . 9 10 11 2 15 25 1 4 1 13 9 4 2 Terminals 62 | . 8 . . . 7 5 6 . 6 13 . . 1 8 4 2 2 Fabricators 8 | . . . . . . . . . 4 3 . . . 1 . . . Repair Stations 9 | . 1 . . . 1 2 . . . 2 . . . 1 2 . . Recycling Units 13 | . 2 . . . . 2 5 . 2 2 . . . . . . . Scanalyzers 8 | . . . . . . . . . 2 3 . . . 1 1 1 . Garrison Access 10 | . . . . . 1 1 . . 1 2 . . . 2 2 1 . Total Hacks 338 | . 30 . 27 . 29 38 25 12 32 53 1 13 2 39 25 9 3 Successful 229 | . 18 . 27 . 17 22 13 12 24 40 1 13 2 20 14 4 2 Failed 106 | . 12 . . . 12 16 12 . 7 12 . . . 18 11 5 1 Catastrophic 8 | . 1 . . . 1 2 1 . . . . . . 1 2 . . Database Lockouts 3 | . . . . . . . . . 1 1 . . . 1 . . . Manual 120 | . 9 . 1 . 12 9 17 . 8 23 . . . 26 11 2 2 Terminals 176 | . 22 . . . 21 21 19 . 12 30 . . 2 29 13 4 3 Fabricators 20 | . . . . . . . . . 10 8 . . . 2 . . . Repair Stations 27 | . 2 . . . 6 10 . . . 4 . . . 1 4 . . Recycling Units 21 | . 6 . . . . 5 6 . 2 2 . . . . . . . Scanalyzers 24 | . . . . . . . . . 7 7 . . . 5 3 2 . Garrison Access 17 | . . . . . 2 2 . . 1 2 . . . 2 5 3 . Terminal Hacks 108 | . 10 . 27 . 7 6 5 12 7 8 1 13 2 5 2 2 1 Record 54 | . . . 26 . . . . 12 . 1 . 12 2 1 . . . Part Schematic 1 | . . . . . . . . . 1 . . . . . . . . Robot Schematic 1 | . . . . . . . 1 . . . . . . . . . . Robot Analysis 2 | . 1 . . . . . . . . 1 . . . . . . . Prototype ID Bank 8 | . 3 . . . 3 . . . . 2 . . . . . . . Open Door 3 | . . . . . . . . . . . 1 1 . . . . 1 Open DSF 1 | . . . . . . . . . . . . . . . . 1 . Level Access Points 1 | . . . . . . . . . . . . . . 1 . . . Branch Access Points 6 | . 1 . . . 1 1 . . 1 1 . . . 1 . . . Terminal Index 1 | . . . . . . . . . . . . . . 1 . . . Alert Level 7 | . 1 . . . 1 2 1 . 1 . . . . . 1 . . Locate Traps 10 | . 2 . . . . 1 . . 3 1 . . . 1 1 1 . Recall Investigation 1 | . . . . . . . . . . 1 . . . . . . . Hauler Manifests 3 | . 1 . . . . . 1 . . 1 . . . . . . . Registered Components 4 | . 1 . . . 1 1 1 . . . . . . . . . . Registered Prototypes 2 | . . . . . 1 1 . . . . . . . . . . . Zone Layout 2 | . . . . . . . 1 . 1 . . . . . . . . Proto ID Catalog 1 | . . . 1 . . . . . . . . . . . . . . Fabricator Hacks 12 | . . . . . . . . . 5 5 . . . 2 . . . Load Schematic 6 | . . . . . . . . . 2 3 . . . 1 . . . Build 6 | . . . . . . . . . 3 2 . . . 1 . . . Repair Station Hacks 26 | . 2 . . . 6 10 . . . 4 . . . . 4 . . Scan Component 13 | . 1 . . . 3 5 . . . 2 . . . . 2 . . Repair 13 | . 1 . . . 3 5 . . . 2 . . . . 2 . . Recycling Unit Hacks 10 | . 4 . . . . 2 . . 2 2 . . . . . . . Report Inventory 7 | . 2 . . . . 2 . . 2 1 . . . . . . . Retrieve Components 3 | . 2 . . . . . . . . 1 . . . . . . . Scanalyzer 18 | . . . . . . . . . 6 4 . . . 4 3 1 . Insert Component 4 | . . . . . . . . . 2 1 . . . . 1 . . Analyze 5 | . . . . . . . . . 3 1 . . . . 1 . . Retrieve Study 9 | . . . . . . . . . 1 2 . . . 4 1 1 . Garrison Access Hacks 8 | . . . . . . 1 . . 1 2 . . . 2 2 . . Seal Access 8 | . . . . . . 1 . . 1 2 . . . 2 2 . . Unauthorized Hacks 47 | . 2 . . . 4 3 8 . 3 15 . . . 7 3 1 1 Terminals 40 | . 2 . . . 4 3 3 . 2 14 . . . 7 3 1 1 Assimilate 12 | . . . . . . 1 . . 1 5 . . . 3 1 . 1 Botnet 20 | . 2 . . . 4 2 3 . 1 3 . . . 2 2 1 . Operators 2 | . . . . . . . . . . 1 . . . 1 . . . Skim 6 | . . . . . . . . . . 5 . . . 1 . . . Fabricators 2 | . . . . . . . . . 1 1 . . . . . . . Fabnet 1 | . . . . . . . . . 1 . . . . . . . . Recompile 1 | . . . . . . . . . . 1 . . . . . . . Repair Stations . | . . . . . . . . . . . . . . . . . . Recycling Units 5 | . . . . . . . 5 . . . . . . . . . . Tunnel 5 | . . . . . . . 5 . . . . . . . . . . Scanalyzers . | . . . . . . . . . . . . . . . . . . Garrison Access . | . . . . . . . . . . . . . . . . . . Data Cores Recovered . | . . . . . . . . . . . . . . . . . . Used . | . . . . . . . . . . . . . . . . . . Hacking Detections 85 | . 6 . . . 8 8 6 . 12 21 . . . 11 8 3 2 Full Trace Events 8 | . . . . . 1 . . . 1 4 . . . 1 . 1 . Feedback Events . | . . . . . . . . . . . . . . . . . . Feedback Blocked . | . . . . . . . . . . . . . . . . . . Robot Schematics Acquired 1 | . . . . . . . 1 . . . . . . . . . . Robots Built . | . . . . . . . . . . . . . . . . . . Authchips . | . . . . . . . . . . . . . . . . . . Time . | . . . . . . . . . . . . . . . . . . Total Robot Build Rating . | . . . . . . . . . . . . . . . . . . Part Schematics Acquired 5 | . . . . . . . . . 3 1 . . . . 1 . . Parts Built 7 | . . . . . . . . . 4 2 . . . 1 . . . Authchips . | . . . . . . . . . . . . . . . . . . Time 550 | . . . . . . . . . 215 268 . . . 67 . . . Total Part Build Rating 32 | . . . . . . . . . 20 8 . . . 4 . . . Part Studies Acquired 9 | . . . . . . . . . 1 2 . . . 4 1 1 . Parts Repaired 13 | . 1 . . . 3 5 . . . 2 . . . . 2 . . Time 448 | . 26 . . . 108 196 . . . 66 . . . . 52 . . Parts Recycled . | . . . . . . . . . . . . . . . . . . Recycled Matter . | . . . . . . . . . . . . . . . . . . Retrieved Matter . | . . . . . . . . . . . . . . . . . . Retrieved Components 13 | . 11 . . . . . . . . 2 . . . . . . . Parts Scanalyzed 4 | . . . . . . . . . 2 1 . . . . 1 . . Part Schematics Acquired 4 | . . . . . . . . . 2 1 . . . . 1 . . Parts Damaged . | . . . . . . . . . . . . . . . . . . Bothacking | -11 -10 -10 -10 -9 -8 -8 -8 -8 -6 -5 -5 -5 -4 -4 -3 -2 -1 ------------ Run | Yrd Mat Min Exi Min Mat Sto Rec Scr Fac Fac Upp War Pro Fac Res Res Acc Used RIF Installer . | . . . . . . . . . . . . . . . . . . Robots Hacked 3 | . . . . . . 1 . . . 1 . . 1 . . . . Non-combat 1 | . . . . . . 1 . . . . . . . . . . . Combat 2 | . . . . . . . . . . 1 . . 1 . . . . Robot Hacks Applied 1 | . . . . . . 1 . . . . . . . . . . . no_distress 1 | . . . . . . 1 . . . . . . . . . . . Relay Couplers Released 4 | . . . . . . . . . . 2 . . . . . 2 . Machine Destruction 4 | . . . . . . . . . . 2 . . . . . 2 . Fabnet Peak Effective % 3 | . . . . . . . . . . 3 3 3 1 1 . . . Autooverrided 2 | . . . . . . . . . . 1 . . 1 . . . . Robots Rewired 16 | . . . . . . . 11 . . . . 5 . . . . . Allies Hacked 1 | . . . . . . . . . 1 . . . . . . . . Hacks Repelled . | . . . . . . . . . . . . . . . . . . Allies | -11 -10 -10 -10 -9 -8 -8 -8 -8 -6 -5 -5 -5 -4 -4 -3 -2 -1 -------- Run | Yrd Mat Min Exi Min Mat Sto Rec Scr Fac Fac Upp War Pro Fac Res Res Acc Total Allies 32 | . . . . 5 . 1 11 . . 5 . 5 1 2 1 . 1 Largest Group 11 | . . . . 5 5 1 11 6 6 2 . 5 1 1 1 . 1 Highest-Rated Group 241 | . . . . 85 85 10 188 99 99 55 . 241 12 24 45 . 45 Highest-Rated Ally 64 | . . . . 31 31 10 27 27 27 29 . 64 12 24 45 . 45 Total Orders 12 | . . . . . . 2 . . 1 3 . 4 . . 1 . 1 STAY 9 | . . . . . . 1 . . 1 3 . 2 . . 1 . 1 FOLLOW 3 | . . . . . . 1 . . . . . 2 . . . . . Ally Attacks 113 | . . . . . 63 . 12 . 5 4 . 27 2 . . . . Total Damage 1915 | . . . . . 752 . 210 . 84 74 . 795 . . . . . Kills 22 | . . . . . 13 . 3 . 1 . . 5 . . . . . Allies Corrupted . | . . . . . . . . . . . . . . . . . . Allies Melted . | . . . . . . . . . . . . . . . . . . Intel | -11 -10 -10 -10 -9 -8 -8 -8 -8 -6 -5 -5 -5 -4 -4 -3 -2 -1 ------- Run | Yrd Mat Min Exi Min Mat Sto Rec Scr Fac Fac Upp War Pro Fac Res Res Acc Active Infowar (turns) 12724 | 61 2319 1514 777 159 . . 135 1496 1256 1620 48 606 553 965 610 511 94 Optics 5634 | . . . . . . . . . 627 1620 48 606 553 965 610 511 94 Terrain 2 | . . . . . . . . . 2 . . . . . . . . Seismic 4830 | 61 2319 1514 777 159 . . . . . . . . . . . . . Machine Analysis 7894 | . . . . . . . 135 1496 1256 1620 48 606 553 965 610 511 94 Jamming 1982 | . . . . . . . . . . . . . . 767 610 511 94 ECM 751 | . . . . . . . . . 651 20 . . 43 1 25 11 . Robot Analysis Total 2 | . 1 . . . . . . . . 1 . . . . . . . Derelict Logs Recovered 5 | . . 2 . 1 . . . . . . . . 2 . . . . Drone Launches . | . . . . . . . . . . . . . . . . . . Drone Recoveries . | . . . . . . . . . . . . . . . . . . Exploration | -11 -10 -10 -10 -9 -8 -8 -8 -8 -6 -5 -5 -5 -4 -4 -3 -2 -1 ------------- Run | Yrd Mat Min Exi Min Mat Sto Rec Scr Fac Fac Upp War Pro Fac Res Res Acc Turns Passed 24368 | 308 2385 1835 777 1229 2341 5314 2420 1496 1256 1620 48 606 553 965 610 511 94 Spaces Moved 20250 | 146 1172 745 356 460 860 1287 1010 718 2534 3420 181 1126 1231 1975 1234 1445 350 Core 3 | 3 . . . . . . . . . . . . . . . . . Treads 602 | 143 446 . . . 13 . . . . . . . . . . . . Legs . | . . . . . . . . . . . . . . . . . . Wheels 6161 | . 726 745 356 460 847 1287 1010 718 12 . . . . . . . . Hover . | . . . . . . . . . . . . . . . . . . Flight 13484 | . . . . . . . . . 2522 3420 181 1126 1231 1975 1234 1445 350 Fastest Speed 15 | 50 145 175 215 215 210 195 195 195 24 18 25 25 18 15 15 19 22 Average Speed 82 | 157 164 201 215 215 226 210 209 199 25 23 25 25 24 20 21 21 22 Slowest Speed 560 | 160 320 215 215 215 560 225 210 210 210 166 25 25 25 21 22 25 22 Overloaded Moves 68 | . . . . . . . . . . 23 . . 19 11 15 . . Propulsion Burnouts . | . . . . . . . . . . . . . . . . . . Robots Hopped 47 | . . . . . . . . . 6 8 . 4 . 4 21 3 1 Potential Cave-ins 12 | . . . . . . . . . . 2 . 2 . 2 6 . . Cave-ins Triggered 1 | . . . . . . . . . . 1 . . . . . . . Exploration Rate (%) 60 | 6 98 92 78 85 51 95 99 55 38 56 20 88 90 35 36 55 7 Regions Visited 17 Branch Regions 9 Pre-discovered Areas 9 | . . 2 . 1 . . 5 . . 1 . . . . . . . Known Exits Taken 6 | . 1 . . . 1 1 . . . 1 . . . 1 . 1 . Unknown Exits Taken 11 | 1 . 1 1 1 . . 1 1 1 . 1 1 1 . 1 . . Scrap Searched 9 | . . 1 . 2 . . . 4 . . . . 2 . . . . Spaces Dug 350 | . 1 5 . . 6 75 2 . 26 71 . . 64 46 34 20 . Terrain Destroyed 526 | . 27 29 . 2 9 90 2 . 31 96 . 3 110 54 43 30 . Melee 267 | . 1 5 . . 6 35 2 . 26 59 . . 37 46 33 17 . Projectile 65 | . . . . 2 3 4 . . . 21 . 3 1 8 10 13 . AOE 194 | . 26 24 . . . 51 . . 5 16 . . 72 . . . . Terrain Rammed . | . . . . . . . . . . . . . . . . . . Walls Destroyed . | . . . . . . . . . . . . . . . . . . Machines Disabled . | . . . . . . . . . . . . . . . . . . Actions | -11 -10 -10 -10 -9 -8 -8 -8 -8 -6 -5 -5 -5 -4 -4 -3 -2 -1 --------- Run | Yrd Mat Min Exi Min Mat Sto Rec Scr Fac Fac Upp War Pro Fac Res Res Acc Total 26558 | 185 1444 1019 370 684 1163 3701 1283 781 3053 4051 182 1423 1394 2413 1474 1575 363 Wait 4940 | . 47 218 . 203 199 2217 213 31 409 470 1 248 107 341 176 49 11 Move 20149 | 145 1171 744 355 459 859 1286 1009 717 2521 3402 180 1118 1230 1966 1200 1440 347 Hop 35 | . . . . . . . . . 6 8 . 3 . 4 12 1 1 Pick Up 150 | 14 27 6 2 4 19 21 8 9 10 9 . 2 . 5 6 8 . Fast Attach 57 | . 1 2 . 1 5 9 1 1 7 13 1 2 . 5 3 6 . Attach 46 | 6 5 . 1 1 5 3 2 3 6 2 . . . 1 5 4 2 Detach 5 | . 1 . 1 . . 1 . . 1 . . . . . 1 . . Swap 151 | 1 19 8 4 4 11 33 11 10 11 6 . 2 4 12 8 6 1 Drop 166 | . 11 8 7 4 19 23 7 10 28 21 . 4 . 7 7 10 . Fire 335 | 19 75 20 . 8 40 59 8 . 1 28 . 22 16 8 10 21 . Melee 433 | . 21 13 . . 6 48 23 . 53 91 . . 37 64 46 30 1 Ram 2 | . . . . . . 1 1 . . . . . . . . . . Kick . | . . . . . . . . . . . . . . . . . . Crush 2 | . 2 . . . . . . . . . . . . . . . . Escape Stasis 1 | . . . . . . . . . . 1 . . . . . . . Rewire 22 | . . . . . . . . . . . . 22 . . . . . Trap 64 | . 64 . . . . . . . . . . . . . . . . Miscellaneous . | . . . . . . . . . . . . . . . . . . Route ------- -11/Scrapyard -10/Materials (discovered 5 exits: [*Mat x3] / *Min / [*Sub]) -10/Mines (discovered 2 exits: [*Mat] / *Exi) -10/Exiles -9/Mines (discovered 2 exits: *Mat x2) -8/Materials (discovered 3 exits: [*Fac x2] / *Sto) -8/Storage (discovered 2 exits: [*Fac] / *Rec) -8/Recycling (discovered 2 exits: *Fac / *Scr) -8/Scraptown -6/Factory (discovered 4 exits: *Fac x2 / *Low x2) -5/Factory (discovered 4 exits: *Upp x2 / Ext x2) -5/Upper Caves -5/Warlord -4/Proximity Caves -4/Factory (discovered 7 exits: *Res x4 / *Upp x2 / Arm) -3/Research -2/Research (discovered 2 exits: *Acc / *Tes) -1/Access To Epsilon Eridani History --------- Turn | Location | Event 9 | -11/Scrapyard | Discovered new exit (range 15) 309 | -11/Scrapyard | Entered Materials 330 | -10/Materials | Build established: Mutant 768 | -10/Materials | Identified exit to Mines 1098 | -10/Materials | Discovered new exit (range 16) 1445 | -10/Materials | Discovered new exit (range 8) 1596 | -10/Materials | Repaired Hcp. Storage Unit 2337 | -10/Materials | Discovered new exit (range 15) 2533 | -10/Materials | Discovered new exit (range 11) 2675 | -10/Materials | Build established: Trapper-Mutant 2694 | -10/Materials | Entered Mines 2800 | -10/Mines | Core integrity fell below 50% 2915 | -10/Mines | Deemed a non-threat by the Exiles lab entrance 2915 | -10/Mines | Discovered new exit (range 5) 3211 | -10/Mines | YI-UF0 nonchalantly dropped a Grenade Launcher on the ground 3423 | -10/Mines | Excavation squad dispatched 3423 | -10/Mines | A large section of the Mines collapsed 3621 | -10/Mines | Learned location of Storage (-8) 4027 | -10/Mines | Learned 2 Materials zone layouts 4184 | -10/Mines | Build established: Scavenger-Mutant 4250 | -10/Mines | Discovered new exit (range 5) 4529 | -10/Mines | Entered Exiles 4593 | -10/Exiles | Met 8R-AWN 4625 | -10/Exiles | Met EX-HEX 4733 | -10/Exiles | Met EX-DEC 4777 | -10/Exiles | Visited The Gauntlet 4865 | -10/Exiles | Build established: Trapper-Mutant 4918 | -10/Exiles | Met EX-BIN 4952 | -10/Exiles | Aligned with FarCom system 4954 | -10/Exiles | Given EX-Vault access code 5027 | -10/Exiles | Opened EX-Vault 5088 | -10/Exiles | Found Army-in-a-Box 5130 | -10/Exiles | Warned to stay clear of 0b10 Research branches 5276 | -10/Exiles | Discovered new exit (range 14) 5306 | -10/Exiles | Left Exiles lab with Army-in-a-Box 5306 | -10/Exiles | Entered Mines 5328 | -9/Mines | A weapon hastily lodged in a ceiling crevice suddenly fell to the ground 5372 | -9/Mines | Discovered new exit (range 11) 5433 | -9/Mines | Found a Scrap Suit stashed away for nefarious purposes 5639 | -9/Mines | Assisted by bots powering up and referring to "LRC-V3" 5640 | -9/Mines | Build established: Mutant 5780 | -9/Mines | Learned location of Zion (-7) 6275 | -9/Mines | Discovered new exit (range 11) 6535 | -9/Mines | Entered Materials 6535 | -8/Materials | Accompanied by 5 allies 6535 | -8/Materials | Evolved 4 slots: Utility x4 6540 | -8/Materials | Led the pair of lost Derelicts to an unsafe place 6843 | -8/Materials | Build established: Scavenger-Mutant 7293 | -8/Materials | Build established: Mutant 7965 | -8/Materials | Identified exit to Storage 8067 | -8/Materials | Discovered new exit (range 14) 8509 | -8/Materials | Repaired Hvy. Battle Rifle 8549 | -8/Materials | Repaired Hrd. Light Armor Plating 8587 | -8/Materials | Repaired Arm. Wheel 8842 | -8/Materials | Discovered new exit (range 15) 8876 | -8/Materials | Entered Storage 9497 | -8/Storage | Lost 3 parts (2u1w) 9791 | -8/Storage | Repaired Imp. Light Armor Plating 9793 | -8/Storage | Build established: Scavenger-Mutant 9833 | -8/Storage | Repaired Shotgun 9880 | -8/Storage | Repaired Hvy. Battle Rifle 9928 | -8/Storage | Repaired Gauss Rifle 10338 | -8/Storage | Build established: Mutant 11486 | -8/Storage | Identified exit to Recycling 11893 | -8/Storage | Met 01-MTF 12835 | -8/Storage | Repaired Hpw. Shotgun 13325 | -8/Storage | Discovered new exit (range 13) 14190 | -8/Storage | Entered Recycling 14190 | -8/Recycling | Accompanied by 1 ally (01-MTF) 14768 | -8/Recycling | Build established: Commander-Mutant 15090 | -8/Recycling | Discovered new exit (range 5) 16324 | -8/Recycling | Scanned before Scraplab entrance 16347 | -8/Recycling | Allies destroyed 01-MTF 16354 | -8/Recycling | Found Prototype Energy Gun 16376 | -8/Recycling | Lost 4 allies 16391 | -8/Recycling | Identified KN-7UR's Autopenetrator 16502 | -8/Recycling | Entered Scraplab 16519 | -8/Recycling | Discovered new exit (range 3) 16610 | -8/Recycling | Entered Scraptown 16610 | -8/Scraptown | Accompanied by 6 allies 16610 | -8/Scraptown | System corruption cleaned by C-Scrubber 16904 | -8/Scraptown | Heard Great Nut preacher, LISTEN AND RECITE! 17277 | -8/Scraptown | Discovered new exit (range 13) 17420 | -8/Scraptown | Visited Cave Peace 17490 | -8/Scraptown | Visited Symbiants 17599 | -8/Scraptown | Visited Awakened 17669 | -8/Scraptown | Visited Junk Repository 17735 | -8/Scraptown | Visited CR-KLE's Repair Center 17763 | -8/Scraptown | CR-KLE repaired 8 parts 17820 | -8/Scraptown | Visited SPCMW 17860 | -8/Scraptown | Visited Junk Repository 18106 | -8/Scraptown | Entered Factory 18106 | -6/Factory | Accompanied by 6 allies 18106 | -6/Factory | Evolved 4 slots: Propulsion x3, Utility x1 18437 | -6/Factory | Build established: Commander-Sprinter 18567 | -6/Factory | Discovered new exit (range 8) 18619 | -6/Factory | Identified exit to Lower Caves 18668 | -6/Factory | Fabricated Enh. Optical Array? 18982 | -6/Factory | Fabricated Adv. Hacking Suite (x1) 19051 | -6/Factory | Central database locked down 19182 | -6/Factory | Build established: Hacker-Ninja 19250 | -6/Factory | Discovered new exit (range 20) 19278 | -6/Factory | Fabricated Cld. VTOL Module? 19333 | -6/Factory | Discovered new exit (range 9) 19362 | -6/Factory | Entered another Factory area 19362 | -5/Factory | Evolved 2 slots: Propulsion x1, Utility x1 19517 | -5/Factory | Discovered new exit (range 20) 19583 | -5/Factory | Fabricated Cld. VTOL Module (x1) 19699 | -5/Factory | Repaired Centrium Light Armor Plating? 19814 | -5/Factory | Fabricated Cld. VTOL Module? 19857 | -5/Factory | P-70 Sage assimilated allied Administrator 6a 20203 | -5/Factory | Crushed by falling debris 20207 | -5/Factory | Cargo convoy interrupted 20348 | -5/Factory | Central database locked down 20363 | -5/Factory | Identified exit to Upper Caves 20363 | -5/Factory | Identified exit to Extension 20394 | -5/Factory | Repaired Imp. Propulsion Shielding 20602 | -5/Factory | Found Prototype Device 20602 | -5/Factory | Identified Exp. Shield Generator 20605 | -5/Factory | Found Prototype Device 20605 | -5/Factory | Identified Exp. Shock Absorption System 20861 | -5/Factory | Learned Research garrison access intel 20945 | -5/Factory | Learned 4 Testing zone layouts 20972 | -5/Factory | Learned 4 Proximity Caves zone layouts 20982 | -5/Factory | Entered Upper Caves 21020 | -5/Upper Caves | A Derelict revealed a hidden shortcut to "reach the base" 21030 | -5/Upper Caves | Entered Warlord 21038 | -5/Warlord | System corruption cleaned by Quarantine Array 21122 | -5/Warlord | Met Warlord 21147 | -5/Warlord | Warlord's base attacked by MAIN.C 21153 | -5/Warlord | Opened side exit 21280 | -5/Warlord | Build established: Hacker-Sprinter 21490 | -5/Warlord | P-70 Sage assimilated allied LY-7HI(M) 21497 | -5/Warlord | Warlord forces counterattacked 21519 | -5/Warlord | Spotted Executioner 21558 | -5/Warlord | Spotted Executioner 21568 | -5/Warlord | Spotted Executioner 21626 | -5/Warlord | Lost 20 allies 21633 | -5/Warlord | Discovered new exit (range 14) 21636 | -5/Warlord | Entered Proximity Caves 21747 | -4/Proximity Caves | Spotter reported a threat 21842 | -4/Proximity Caves | Learned Research trap positions 21900 | -4/Proximity Caves | Attracted the attention of an 0b10 checkpoint 22187 | -4/Proximity Caves | Discovered new exit (range 10) 22189 | -4/Proximity Caves | Entered Factory 22189 | -4/Factory | Evolved 2 slots: Power x1, Propulsion x1 22190 | -4/Factory | Identified exit to Armory 22351 | -4/Factory | Fabricated Cld. VTOL Module? 22378 | -4/Factory | Identified exit to Upper Caves 22472 | -4/Factory | Build established: Hacker-Ninja 22753 | -4/Factory | Identified exit to Research 23007 | -4/Factory | Central database locked down 23154 | -4/Factory | Entered Research 23154 | -3/Research | Evolved 2 slots: Utility x2 23155 | -3/Research | Loaded intel: 114 trap records 23156 | -3/Research | Loaded intel: 4 garrison access locations 23281 | -3/Research | Repaired Centrium Light Armor Plating 23444 | -3/Research | Repaired Mni. Grenade Launcher+ 23760 | -3/Research | Discovered new exit (range 6) 23764 | -3/Research | Entered another Research area 23764 | -2/Research | Warlord forces began assault on 0b10 23764 | -2/Research | Evolved 2 slots: Utility x2 23826 | -2/Research | Found Prototype Processor 23827 | -2/Research | Identified Exp. Core Analyzer 23874 | -2/Research | Research machine network offline 23935 | -2/Research | Discovered new exit (range 21) 23941 | -2/Research | Identified exit to Testing 23942 | -2/Research | Spotted B-90 Cyclops 23953 | -2/Research | Met up with Warlord 24015 | -2/Research | Spotted Striker 24015 | -2/Research | Spotted Striker 24026 | -2/Research | Lost 3 allies 24084 | -2/Research | Spotted B-90 Cyclops 24150 | -2/Research | Spotted Executioner 24182 | -2/Research | Spotted Striker 24182 | -2/Research | Spotted Executioner 24273 | -2/Research | Discovered new exit (range 5) 24274 | -2/Research | Identified exit to Access 24275 | -2/Research | Entered Access 24275 | -1/Access | Evolved 2 slots: Power x1, Utility x1 24368 | -1/Access | Discovered new exit (range 6) 24369 | -1/Access | Identified exit to Surface 24369 | *** | Escaped! Last Messages --------------- >>Trojan(Assimilate) Trojan loaded successfully. Testing... System interface override in place. 24304_ O-32 Director: "IFF HANDSHAKE FAILED. SECURING TERMINAL." 24317_ Director 10a reveals location of Alarm Trap. 24326_ W-44 Eye destroyed. 24329_ Acquired 30 matter. 24345_ Director 10a reveals location of hidden door. 24352_ Slug penetrates Wall. 24368_ Connecting with Terminal... >>Open(Door) Sealed Barrier opened. 24368_ The Access Shell folds into the floor. 24368_ EXIT=FOUND 24369_ EXIT=IDENTIFIED: SURFACE [Achievement: Epsilon Run] Map ----- +----------------------------------------------------+ | ?????????????????????????????????????????????????? | | ?????????????????????????????????????????????????? | | ?????????????????????????????????????????????????? | | ?????????????????????????????????????????????????? | | ?????????????????????????????????????????????????? | | ?????????????????????????????????????????????????? | | ?????????????????????????????????????????????????? | | ?????????????????????????????????????????????????? | | ?????????????????????????????????????????????????? | | ?????????????????????????????????????????????????? | | ???????????????????????????w?????????????????????? | | ?????????????????????????????????????????????????? | | ?????????????????????????????????????????????????? | | ?????????????????????????????????????????????????? | | ?????????????????????BB????BB????????????????????? | | ?????????????????????BB????BB????????????????????? | | ?????????????????????????????????????????????????? | | ?????????????????????????????????????????????????? | | ?????????????????????????????????????????????????? | | ?????????????????????????????????????????????????? | | ???????????????????#""""""""""#??????????????????? | | ???????????????????# #??????????????????? | | ???????????????????# #??????????????????? | | ???????????????????# #??????????????????? | | ?????????g?????????# "" #??????????????????? | | ?????????g?????????# "@ #??????????????????? | | ???????????????????# #?????##+##????????? | | ???????????????????# #????? #????????? | | ???????????????????# #????? ?????????? | | ??????????????????## ##???? ?????????? | | ??????????????????# #???? ?????????? | | ??????????????????##"" ##????# #?????????? | | ???????????????????#"" #?????# ########### | | ???????????????????#"" #?????# # | | ???????????????????#T #?????# # | | ???????????????????#"" #?????# # | | ???????????????????#"" #?????# # | | ???????????#########"" ####### # | | ???????? " # | | ??????# + | | ??????# ########################## # | | ????????????????????????????????????# # | | ????????????????????????????????????# # | | ????????????????????????????????????# # | | ????????????????????????????????????# # | | ???????????????????????????????????? ########### | | ???????????????????????????????????? #?????????# | | ????????????????????????????????????############## | | ??????????????????????????????????????# ]] # | | ??????????????????????????????????????# ]] # | +----------------------------------------------------+ Best States ------------- Heat Dissipation 83 Energy Generation 50 Energy Capacity 365 Matter Stores 300 Matter Capacity 300 Sight Range 23 Terrain Scan Range 16 Terrain Scan Density 10 ECM Strength 2 Jamming Range 16 Base Temperature (-) 200 Armor Coverage 675 Propulsion Shielding 66 Evasion (%) 66 Targeting Accuracy 8 Core Analysis 8 Recoil Reduction 2 Offensive Hacking 48 Defensive Hacking 12 Trap Extractor Capacity 4 Item Schematics ----------------- Cld. VTOL Module | -6/Factory | Hacked Cesium-ion Thruster | -6/Factory | Scanalyzed Lgt. Angular Momentum Engine | -6/Factory | Scanalyzed Lgt. Fission Core | -5/Factory | Scanalyzed Impulse Thruster | -3/Research | Scanalyzed Robot Schematics ------------------ M-13 Machinist | -8/Recycling | Hacked Fabricated ------------ Enh. Optical Array | x2 | -6/Factory | Preloaded Adv. Hacking Suite | x1 | -6/Factory | Preloaded Cld. VTOL Module | x1 | -6/Factory Cld. VTOL Module | x1 | -5/Factory Cld. VTOL Module | x1 | -5/Factory Cld. VTOL Module | x1 | -4/Factory Repaired ---------- Hcp. Storage Unit | 30% | -10/Materials Hvy. Battle Rifle | 44% | -8/Materials Hrd. Light Armor Plating | 36% | -8/Materials Arm. Wheel | 53% | -8/Materials Imp. Light Armor Plating | 14% | -8/Storage Shotgun | 27% | -8/Storage Hvy. Battle Rifle | 56% | -8/Storage Gauss Rifle | 67% | -8/Storage Hpw. Shotgun | 40% | -8/Storage Centrium Light Armor Plating | 60% | -5/Factory Imp. Propulsion Shielding | 26% | -5/Factory Centrium Light Armor Plating | 22% | -3/Research Mni. Grenade Launcher | 16% | -3/Research Studied --------- Nuclear Pulse Thruster | -6/Factory | Hacked Power Sword | -5/Factory | Hacked Xenon Bombardment Thruster | -5/Factory | Hacked Nuclear Pulse Array | -4/Factory | Hacked Impulse Thruster | -4/Factory | Hacked Lance | -4/Factory | Hacked Lgt. Antimatter Reactor | -4/Factory | Hacked Mni. Grenade Launcher | -3/Research | Hacked Q-thruster | -2/Research | Hacked Alien Tech Used ----------------- None Achievements -------------- All-out Warlord Can't Catch Me Cya! Epsilon Run Network Effect Party Time Professional Mechanic Recruitment Drive We Love MA Challenges ------------ None Game ------ Seed SurgeSpikedStorm Manual? 0 Play Time 05:39:50 Cumulative 64.4 hours Start 2025.11.29 @ 23:57:12 End 2025.12.04 @ 15:16:01 Sessions 17 Manual Loads 0 Difficulty Rogue Special Mode None Game No. 30 Rogue 30 Adventurer 0 Explorer 0 Win Type 0 Total 1 Types 1/0/0/0/0/0/0/0/0/0 Lore% 44 Gallery% 40 Achievement% 37 Wizard Run 0 Options --------- Layout 1 ASCII 0 Keyboard 0 Movement Numpad Keybinds 0 Fullscreen 2 Font 24/Smallcaps Map View 50x35 Zoom Use 0% Tactical HUD 1 Map Filters NONE Filters NONE Steam 1 RUN: e1e24d3a-e9e0-4857-8541-56400ea855bf